{"text_format":"1","workbook":"xlsx","n_sheets":2,"sheets":["Produtos Infantis","Dados"],"not_rendered":{"charts":0,"images":0,"macros":1,"external_links":0,"defined_names":0,"comments":0,"pivot_tables":0},"unopened":[],"bounds":{"document_bytes":16777216,"sheet_cells":100000,"rows_first":2000,"rows_last":500,"rows_between":2000,"halvings":0,"cell_chars":16384,"cell_head_chars":4096},"cells_cut":0,"cells_raw":0,"read":"whole","date_system":"1900"}

{"sheet":"Produtos Infantis","index":0,"n_rows":123,"n_cols":8,"rows_kept":123,"cut":false,"hidden":false,"merged":[[0,0,0,7]]}
["Lista de Produtos Infantis"]
["Descrição","Tamanho","Preço Unitário","Quantidades","Valor Total","Nossa_SE","Alerta de Estoque","Nossa_MULT"]
["Tênis Infantil Nika Vermelho",36,95,3,{"$f":"C3*D3","v":285},{"$f":"Nossa_SE(D3, \"Estoque Baixo\", \"Estoque Normal\")","v":"Estoque Baixo"},{"$f":"IF(D3<10, \"Estoque Baixo\", \"Estoque Normal\")","v":"Estoque Baixo"},{"$f":"Nossa_MULT(C3,D3)","v":285}]
["Tênis Infantil Nika Rosa",36,89.9,3,269.70000000000005,{"$f":"Nossa_SE(D4, \"Estoque Baixo\", \"Estoque Normal\")","v":"Estoque Baixo"},"Estoque Baixo",{"$f":"Nossa_MULT(C4,D4)","v":269.70000000000005}]
["Tênis Infantil Nika Azul",36,89.9,0,0,{"$f":"Nossa_SE(D5, \"Estoque Baixo\", \"Estoque Normal\")","v":"Estoque Baixo"},"Estoque Baixo",{"$f":"Nossa_MULT(C5,D5)","v":0}]
["Tênis Infantil Atitas Vermelho",36,83.3,36,2998.7999999999997,{"$f":"Nossa_SE(D6, \"Estoque Baixo\", \"Estoque Normal\")","v":"Estoque Normal"},"Estoque Normal",{"$f":"Nossa_MULT(C6,D6)","v":2998.7999999999997}]
["Tênis Infantil Atitas Rosa",36,83.3,5,416.5,{"$f":"Nossa_SE(D7, \"Estoque Baixo\", \"Estoque Normal\")","v":"Estoque Baixo"},"Estoque Baixo",{"$f":"Nossa_MULT(C7,D7)","v":416.5}]
["Tênis Infantil Atitas Azul",36,83.3,14,1166.2,{"$f":"Nossa_SE(D8, \"Estoque Baixo\", \"Estoque Normal\")","v":"Estoque Baixo"},"Estoque Normal",{"$f":"Nossa_MULT(C8,D8)","v":1166.2}]
["Tênis Infantil Nika Vermelho",35,89.9,21,1887.9,{"$f":"Nossa_SE(D9, \"Estoque Baixo\", \"Estoque Normal\")","v":"Estoque Baixo"},"Estoque Normal",{"$f":"Nossa_MULT(C9,D9)","v":1887.9}]
["Tênis Infantil Nika Rosa",35,89.9,16,1438.4,{"$f":"Nossa_SE(D10, \"Estoque Baixo\", \"Estoque Normal\")","v":"Estoque Baixo"},"Estoque Normal",{"$f":"Nossa_MULT(C10,D10)","v":1438.4}]
["Tênis Infantil Nika Azul",35,89.9,2,179.8,{"$f":"Nossa_SE(D11, \"Estoque Baixo\", \"Estoque Normal\")","v":"Estoque Baixo"},"Estoque Baixo",{"$f":"Nossa_MULT(C11,D11)","v":179.8}]
["Tênis Infantil Atitas Vermelho",35,83.3,2,166.6,{"$f":"Nossa_SE(D12, \"Estoque Baixo\", \"Estoque Normal\")","v":"Estoque Baixo"},"Estoque Baixo",{"$f":"Nossa_MULT(C12,D12)","v":166.6}]
["Tênis Infantil Atitas Rosa",35,83.3,26,2165.7999999999997,{"$f":"Nossa_SE(D13, \"Estoque Baixo\", \"Estoque Normal\")","v":"Estoque Baixo"},"Estoque Normal",{"$f":"Nossa_MULT(C13,D13)","v":2165.7999999999997}]
["Tênis Infantil Atitas Azul",35,83.3,8,666.4,{"$f":"Nossa_SE(D14, \"Estoque Baixo\", \"Estoque Normal\")","v":"Estoque Baixo"},"Estoque Baixo",{"$f":"Nossa_MULT(C14,D14)","v":666.4}]
["Tênis Infantil Nika Vermelho",34,89.9,4,359.6,{"$f":"Nossa_SE(D15, \"Estoque Baixo\", \"Estoque Normal\")","v":"Estoque Baixo"},"Estoque Baixo",{"$f":"Nossa_MULT(C15,D15)","v":359.6}]
["Tênis Infantil Nika Rosa",34,89.9,25,2247.5,{"$f":"Nossa_SE(D16, \"Estoque Baixo\", \"Estoque Normal\")","v":"Estoque Baixo"},"Estoque Normal",{"$f":"Nossa_MULT(C16,D16)","v":2247.5}]
["Tênis Infantil Nika Azul",34,89.9,15,1348.5,{"$f":"Nossa_SE(D17, \"Estoque Baixo\", \"Estoque Normal\")","v":"Estoque Baixo"},"Estoque Normal",{"$f":"Nossa_MULT(C17,D17)","v":1348.5}]
["Tênis Infantil Atitas Vermelho",34,83.3,16,1332.8,{"$f":"Nossa_SE(D18, \"Estoque Baixo\", \"Estoque Normal\")","v":"Estoque Baixo"},"Estoque Normal",{"$f":"Nossa_MULT(C18,D18)","v":1332.8}]
["Tênis Infantil Atitas Rosa",34,83.3,19,1582.7,{"$f":"Nossa_SE(D19, \"Estoque Baixo\", \"Estoque Normal\")","v":"Estoque Baixo"},"Estoque Normal",{"$f":"Nossa_MULT(C19,D19)","v":1582.7}]
["Tênis Infantil Atitas Azul",34,83.3,6,499.79999999999995,{"$f":"Nossa_SE(D20, \"Estoque Baixo\", \"Estoque Normal\")","v":"Estoque Baixo"},"Estoque Baixo",{"$f":"Nossa_MULT(C20,D20)","v":499.79999999999995}]
["Tênis Infantil Nika Vermelho",33,89.9,6,539.40000000000009,{"$f":"Nossa_SE(D21, \"Estoque Baixo\", \"Estoque Normal\")","v":"Estoque Baixo"},"Estoque Baixo",{"$f":"Nossa_MULT(C21,D21)","v":539.40000000000009}]
["Tênis Infantil Nika Rosa",33,89.9,4,359.6,{"$f":"Nossa_SE(D22, \"Estoque Baixo\", \"Estoque Normal\")","v":"Estoque Baixo"},"Estoque Baixo",{"$f":"Nossa_MULT(C22,D22)","v":359.6}]
["Tênis Infantil Nika Azul",33,89.9,4,359.6,{"$f":"Nossa_SE(D23, \"Estoque Baixo\", \"Estoque Normal\")","v":"Estoque Baixo"},"Estoque Baixo",{"$f":"Nossa_MULT(C23,D23)","v":359.6}]
["Tênis Infantil Atitas Vermelho",33,83.3,15,1249.5,{"$f":"Nossa_SE(D24, \"Estoque Baixo\", \"Estoque Normal\")","v":"Estoque Baixo"},"Estoque Normal",{"$f":"Nossa_MULT(C24,D24)","v":1249.5}]
["Tênis Infantil Atitas Rosa",33,83.3,5,416.5,{"$f":"Nossa_SE(D25, \"Estoque Baixo\", \"Estoque Normal\")","v":"Estoque Baixo"},"Estoque Baixo",{"$f":"Nossa_MULT(C25,D25)","v":416.5}]
["Tênis Infantil Atitas Azul",33,83.3,0,0,{"$f":"Nossa_SE(D26, \"Estoque Baixo\", \"Estoque Normal\")","v":"Estoque Baixo"},"Estoque Baixo",{"$f":"Nossa_MULT(C26,D26)","v":0}]
["Tênis Infantil Nika Vermelho",32,89.9,3,269.70000000000005,{"$f":"Nossa_SE(D27, \"Estoque Baixo\", \"Estoque Normal\")","v":"Estoque Baixo"},"Estoque Baixo",{"$f":"Nossa_MULT(C27,D27)","v":269.70000000000005}]
["Tênis Infantil Nika Rosa",32,89.9,8,719.2,{"$f":"Nossa_SE(D28, \"Estoque Baixo\", \"Estoque Normal\")","v":"Estoque Baixo"},"Estoque Baixo",{"$f":"Nossa_MULT(C28,D28)","v":719.2}]
["Tênis Infantil Nika Azul",32,89.9,8,719.2,{"$f":"Nossa_SE(D29, \"Estoque Baixo\", \"Estoque Normal\")","v":"Estoque Baixo"},"Estoque Baixo",{"$f":"Nossa_MULT(C29,D29)","v":719.2}]
["Tênis Infantil Atitas Vermelho",32,83.3,5,416.5,{"$f":"Nossa_SE(D30, \"Estoque Baixo\", \"Estoque Normal\")","v":"Estoque Baixo"},"Estoque Baixo",{"$f":"Nossa_MULT(C30,D30)","v":416.5}]
["Tênis Infantil Atitas Rosa",32,83.3,0,0,{"$f":"Nossa_SE(D31, \"Estoque Baixo\", \"Estoque Normal\")","v":"Estoque Baixo"},"Estoque Baixo",{"$f":"Nossa_MULT(C31,D31)","v":0}]
["Tênis Infantil Atitas Azul",32,83.3,0,0,{"$f":"Nossa_SE(D32, \"Estoque Baixo\", \"Estoque Normal\")","v":"Estoque Baixo"},"Estoque Baixo",{"$f":"Nossa_MULT(C32,D32)","v":0}]
["Tênis Infantil Nika Vermelho",31,89.9,8,719.2,{"$f":"Nossa_SE(D33, \"Estoque Baixo\", \"Estoque Normal\")","v":"Estoque Baixo"},"Estoque Baixo",{"$f":"Nossa_MULT(C33,D33)","v":719.2}]
["Tênis Infantil Nika Rosa",31,89.9,23,2067.7000000000003,{"$f":"Nossa_SE(D34, \"Estoque Baixo\", \"Estoque Normal\")","v":"Estoque Baixo"},"Estoque Normal",{"$f":"Nossa_MULT(C34,D34)","v":2067.7000000000003}]
["Tênis Infantil Nika Azul",31,89.9,15,{"$f":"C35*D35","v":1348.5},{"$f":"Nossa_SE(D35, \"Estoque Baixo\", \"Estoque Normal\")","v":"Estoque Baixo"},{"$f":"IF(D35<10, \"Estoque Baixo\", \"Estoque Normal\")","v":"Estoque Normal"},{"$f":"Nossa_MULT(C35,D35)","v":1348.5}]
["Tênis Infantil Atitas Vermelho",31,83.3,4,333.2,{"$f":"Nossa_SE(D36, \"Estoque Baixo\", \"Estoque Normal\")","v":"Estoque Baixo"},"Estoque Baixo",{"$f":"Nossa_MULT(C36,D36)","v":333.2}]
["Tênis Infantil Atitas Rosa",31,83.3,6,499.79999999999995,{"$f":"Nossa_SE(D37, \"Estoque Baixo\", \"Estoque Normal\")","v":"Estoque Baixo"},"Estoque Baixo",{"$f":"Nossa_MULT(C37,D37)","v":499.79999999999995}]
["Tênis Infantil Atitas Azul",31,83.3,20,1666,{"$f":"Nossa_SE(D38, \"Estoque Baixo\", \"Estoque Normal\")","v":"Estoque Baixo"},"Estoque Normal",{"$f":"Nossa_MULT(C38,D38)","v":1666}]
["Tênis Infantil Nika Vermelho",30,89.9,25,2247.5,{"$f":"Nossa_SE(D39, \"Estoque Baixo\", \"Estoque Normal\")","v":"Estoque Baixo"},"Estoque Normal",{"$f":"Nossa_MULT(C39,D39)","v":2247.5}]
["Tênis Infantil Nika Rosa",30,89.9,3,269.70000000000005,{"$f":"Nossa_SE(D40, \"Estoque Baixo\", \"Estoque Normal\")","v":"Estoque Baixo"},"Estoque Baixo",{"$f":"Nossa_MULT(C40,D40)","v":269.70000000000005}]
["Tênis Infantil Nika Azul",30,89.9,6,539.40000000000009,{"$f":"Nossa_SE(D41, \"Estoque Baixo\", \"Estoque Normal\")","v":"Estoque Baixo"},"Estoque Baixo",{"$f":"Nossa_MULT(C41,D41)","v":539.40000000000009}]
["Tênis Infantil Atitas Vermelho",30,83.3,0,0,{"$f":"Nossa_SE(D42, \"Estoque Baixo\", \"Estoque Normal\")","v":"Estoque Baixo"},"Estoque Baixo",{"$f":"Nossa_MULT(C42,D42)","v":0}]
["Tênis Infantil Atitas Rosa",30,83.3,3,249.89999999999998,{"$f":"Nossa_SE(D43, \"Estoque Baixo\", \"Estoque Normal\")","v":"Estoque Baixo"},"Estoque Baixo",{"$f":"Nossa_MULT(C43,D43)","v":249.89999999999998}]
["Tênis Infantil Atitas Azul",30,83.3,16,1332.8,{"$f":"Nossa_SE(D44, \"Estoque Baixo\", \"Estoque Normal\")","v":"Estoque Baixo"},"Estoque Normal",{"$f":"Nossa_MULT(C44,D44)","v":1332.8}]
["Tênis Infantil Nika Vermelho",29,89.9,0,0,{"$f":"Nossa_SE(D45, \"Estoque Baixo\", \"Estoque Normal\")","v":"Estoque Baixo"},"Estoque Baixo",{"$f":"Nossa_MULT(C45,D45)","v":0}]
["Tênis Infantil Nika Rosa",29,89.9,1,89.9,{"$f":"Nossa_SE(D46, \"Estoque Baixo\", \"Estoque Normal\")","v":"Estoque Baixo"},"Estoque Baixo",{"$f":"Nossa_MULT(C46,D46)","v":89.9}]
["Tênis Infantil Nika Azul",29,89.9,8,719.2,{"$f":"Nossa_SE(D47, \"Estoque Baixo\", \"Estoque Normal\")","v":"Estoque Baixo"},"Estoque Baixo",{"$f":"Nossa_MULT(C47,D47)","v":719.2}]
["Tênis Infantil Atitas Vermelho",29,83.3,5,416.5,{"$f":"Nossa_SE(D48, \"Estoque Baixo\", \"Estoque Normal\")","v":"Estoque Baixo"},"Estoque Baixo",{"$f":"Nossa_MULT(C48,D48)","v":416.5}]
["Tênis Infantil Atitas Rosa",29,83.3,2,166.6,{"$f":"Nossa_SE(D49, \"Estoque Baixo\", \"Estoque Normal\")","v":"Estoque Baixo"},"Estoque Baixo",{"$f":"Nossa_MULT(C49,D49)","v":166.6}]
["Tênis Infantil Atitas Azul",29,83.3,7,583.1,{"$f":"Nossa_SE(D50, \"Estoque Baixo\", \"Estoque Normal\")","v":"Estoque Baixo"},"Estoque Baixo",{"$f":"Nossa_MULT(C50,D50)","v":583.1}]
["Tênis Infantil Nika Vermelho",28,89.9,5,449.5,{"$f":"Nossa_SE(D51, \"Estoque Baixo\", \"Estoque Normal\")","v":"Estoque Baixo"},"Estoque Baixo",{"$f":"Nossa_MULT(C51,D51)","v":449.5}]
["Tênis Infantil Nika Rosa",28,89.9,21,1887.9,{"$f":"Nossa_SE(D52, \"Estoque Baixo\", \"Estoque Normal\")","v":"Estoque Baixo"},"Estoque Normal",{"$f":"Nossa_MULT(C52,D52)","v":1887.9}]
["Tênis Infantil Nika Azul",28,89.9,5,449.5,{"$f":"Nossa_SE(D53, \"Estoque Baixo\", \"Estoque Normal\")","v":"Estoque Baixo"},"Estoque Baixo",{"$f":"Nossa_MULT(C53,D53)","v":449.5}]
["Tênis Infantil Atitas Vermelho",28,83.3,29,2415.6999999999998,{"$f":"Nossa_SE(D54, \"Estoque Baixo\", \"Estoque Normal\")","v":"Estoque Baixo"},"Estoque Normal",{"$f":"Nossa_MULT(C54,D54)","v":2415.6999999999998}]
["Tênis Infantil Atitas Rosa",28,83.3,18,1499.3999999999999,{"$f":"Nossa_SE(D55, \"Estoque Baixo\", \"Estoque Normal\")","v":"Estoque Baixo"},"Estoque Normal",{"$f":"Nossa_MULT(C55,D55)","v":1499.3999999999999}]
["Tênis Infantil Atitas Azul",28,83.3,8,666.4,{"$f":"Nossa_SE(D56, \"Estoque Baixo\", \"Estoque Normal\")","v":"Estoque Baixo"},"Estoque Baixo",{"$f":"Nossa_MULT(C56,D56)","v":666.4}]
["Tênis Infantil Nika Vermelho",27,85.5,23,1966.5,{"$f":"Nossa_SE(D57, \"Estoque Baixo\", \"Estoque Normal\")","v":"Estoque Baixo"},"Estoque Normal",{"$f":"Nossa_MULT(C57,D57)","v":1966.5}]
["Tênis Infantil Nika Rosa",27,85.5,26,2223,{"$f":"Nossa_SE(D58, \"Estoque Baixo\", \"Estoque Normal\")","v":"Estoque Baixo"},"Estoque Normal",{"$f":"Nossa_MULT(C58,D58)","v":2223}]
["Tênis Infantil Nika Azul",27,85.5,30,2565,{"$f":"Nossa_SE(D59, \"Estoque Baixo\", \"Estoque Normal\")","v":"Estoque Normal"},"Estoque Normal",{"$f":"Nossa_MULT(C59,D59)","v":2565}]
["Tênis Infantil Atitas Vermelho",27,79.8,15,1197,{"$f":"Nossa_SE(D60, \"Estoque Baixo\", \"Estoque Normal\")","v":"Estoque Baixo"},"Estoque Normal",{"$f":"Nossa_MULT(C60,D60)","v":1197}]
["Tênis Infantil Atitas Rosa",27,79.8,18,1436.3999999999999,{"$f":"Nossa_SE(D61, \"Estoque Baixo\", \"Estoque Normal\")","v":"Estoque Baixo"},"Estoque Normal",{"$f":"Nossa_MULT(C61,D61)","v":1436.3999999999999}]
["Tênis Infantil Atitas Azul",27,79.8,2,159.6,{"$f":"Nossa_SE(D62, \"Estoque Baixo\", \"Estoque Normal\")","v":"Estoque Baixo"},"Estoque Baixo",{"$f":"Nossa_MULT(C62,D62)","v":159.6}]
["Tênis Infantil Nika Vermelho",26,85.5,26,2223,{"$f":"Nossa_SE(D63, \"Estoque Baixo\", \"Estoque Normal\")","v":"Estoque Baixo"},"Estoque Normal",{"$f":"Nossa_MULT(C63,D63)","v":2223}]
["Tênis Infantil Nika Rosa",26,85.5,25,2137.5,{"$f":"Nossa_SE(D64, \"Estoque Baixo\", \"Estoque Normal\")","v":"Estoque Baixo"},"Estoque Normal",{"$f":"Nossa_MULT(C64,D64)","v":2137.5}]
["Tênis Infantil Nika Azul",26,85.5,8,684,{"$f":"Nossa_SE(D65, \"Estoque Baixo\", \"Estoque Normal\")","v":"Estoque Baixo"},"Estoque Baixo",{"$f":"Nossa_MULT(C65,D65)","v":684}]
["Tênis Infantil Atitas Vermelho",26,79.8,14,1117.2,{"$f":"Nossa_SE(D66, \"Estoque Baixo\", \"Estoque Normal\")","v":"Estoque Baixo"},"Estoque Normal",{"$f":"Nossa_MULT(C66,D66)","v":1117.2}]
["Tênis Infantil Atitas Rosa",26,79.8,15,{"$f":"C67*D67","v":1197},{"$f":"Nossa_SE(D67, \"Estoque Baixo\", \"Estoque Normal\")","v":"Estoque Baixo"},{"$f":"IF(D67<10, \"Estoque Baixo\", \"Estoque Normal\")","v":"Estoque Normal"},{"$f":"Nossa_MULT(C67,D67)","v":1197}]
["Tênis Infantil Atitas Azul",26,79.8,25,1995,{"$f":"Nossa_SE(D68, \"Estoque Baixo\", \"Estoque Normal\")","v":"Estoque Baixo"},"Estoque Normal",{"$f":"Nossa_MULT(C68,D68)","v":1995}]
["Tênis Infantil Nika Vermelho",25,85.5,2,171,{"$f":"Nossa_SE(D69, \"Estoque Baixo\", \"Estoque Normal\")","v":"Estoque Baixo"},"Estoque Baixo",{"$f":"Nossa_MULT(C69,D69)","v":171}]
["Tênis Infantil Nika Rosa",25,85.5,19,1624.5,{"$f":"Nossa_SE(D70, \"Estoque Baixo\", \"Estoque Normal\")","v":"Estoque Baixo"},"Estoque Normal",{"$f":"Nossa_MULT(C70,D70)","v":1624.5}]
["Tênis Infantil Nika Azul",25,85.5,6,513,{"$f":"Nossa_SE(D71, \"Estoque Baixo\", \"Estoque Normal\")","v":"Estoque Baixo"},"Estoque Baixo",{"$f":"Nossa_MULT(C71,D71)","v":513}]
["Tênis Infantil Atitas Vermelho",25,79.8,16,1276.8,{"$f":"Nossa_SE(D72, \"Estoque Baixo\", \"Estoque Normal\")","v":"Estoque Baixo"},"Estoque Normal",{"$f":"Nossa_MULT(C72,D72)","v":1276.8}]
["Tênis Infantil Atitas Rosa",25,79.8,9,718.19999999999993,{"$f":"Nossa_SE(D73, \"Estoque Baixo\", \"Estoque Normal\")","v":"Estoque Baixo"},"Estoque Baixo",{"$f":"Nossa_MULT(C73,D73)","v":718.19999999999993}]
["Tênis Infantil Atitas Azul",25,79.8,15,1197,{"$f":"Nossa_SE(D74, \"Estoque Baixo\", \"Estoque Normal\")","v":"Estoque Baixo"},"Estoque Normal",{"$f":"Nossa_MULT(C74,D74)","v":1197}]
["Tênis Infantil Nika Vermelho",24,85.5,25,2137.5,{"$f":"Nossa_SE(D75, \"Estoque Baixo\", \"Estoque Normal\")","v":"Estoque Baixo"},"Estoque Normal",{"$f":"Nossa_MULT(C75,D75)","v":2137.5}]
["Tênis Infantil Nika Rosa",24,85.5,16,1368,{"$f":"Nossa_SE(D76, \"Estoque Baixo\", \"Estoque Normal\")","v":"Estoque Baixo"},"Estoque Normal",{"$f":"Nossa_MULT(C76,D76)","v":1368}]
["Tênis Infantil Nika Azul",24,85.5,25,2137.5,{"$f":"Nossa_SE(D77, \"Estoque Baixo\", \"Estoque Normal\")","v":"Estoque Baixo"},"Estoque Normal",{"$f":"Nossa_MULT(C77,D77)","v":2137.5}]
["Tênis Infantil Atitas Vermelho",24,79.8,15,1197,{"$f":"Nossa_SE(D78, \"Estoque Baixo\", \"Estoque Normal\")","v":"Estoque Baixo"},"Estoque Normal",{"$f":"Nossa_MULT(C78,D78)","v":1197}]
["Tênis Infantil Atitas Rosa",24,79.8,8,638.4,{"$f":"Nossa_SE(D79, \"Estoque Baixo\", \"Estoque Normal\")","v":"Estoque Baixo"},"Estoque Baixo",{"$f":"Nossa_MULT(C79,D79)","v":638.4}]
["Tênis Infantil Atitas Azul",24,79.8,23,1835.3999999999999,{"$f":"Nossa_SE(D80, \"Estoque Baixo\", \"Estoque Normal\")","v":"Estoque Baixo"},"Estoque Normal",{"$f":"Nossa_MULT(C80,D80)","v":1835.3999999999999}]
["Tênis Infantil Nika Vermelho",23,85.5,2,171,{"$f":"Nossa_SE(D81, \"Estoque Baixo\", \"Estoque Normal\")","v":"Estoque Baixo"},"Estoque Baixo",{"$f":"Nossa_MULT(C81,D81)","v":171}]
["Tênis Infantil Nika Rosa",23,85.5,5,427.5,{"$f":"Nossa_SE(D82, \"Estoque Baixo\", \"Estoque Normal\")","v":"Estoque Baixo"},"Estoque Baixo",{"$f":"Nossa_MULT(C82,D82)","v":427.5}]
["Tênis Infantil Nika Azul",23,85.5,0,0,{"$f":"Nossa_SE(D83, \"Estoque Baixo\", \"Estoque Normal\")","v":"Estoque Baixo"},"Estoque Baixo",{"$f":"Nossa_MULT(C83,D83)","v":0}]
["Tênis Infantil Atitas Vermelho",23,79.8,16,1276.8,{"$f":"Nossa_SE(D84, \"Estoque Baixo\", \"Estoque Normal\")","v":"Estoque Baixo"},"Estoque Normal",{"$f":"Nossa_MULT(C84,D84)","v":1276.8}]
["Tênis Infantil Atitas Rosa",23,79.8,6,478.79999999999995,{"$f":"Nossa_SE(D85, \"Estoque Baixo\", \"Estoque Normal\")","v":"Estoque Baixo"},"Estoque Baixo",{"$f":"Nossa_MULT(C85,D85)","v":478.79999999999995}]
["Tênis Infantil Atitas Azul",23,79.8,8,638.4,{"$f":"Nossa_SE(D86, \"Estoque Baixo\", \"Estoque Normal\")","v":"Estoque Baixo"},"Estoque Baixo",{"$f":"Nossa_MULT(C86,D86)","v":638.4}]
["Tênis Infantil Nika Vermelho",22,85.5,8,684,{"$f":"Nossa_SE(D87, \"Estoque Baixo\", \"Estoque Normal\")","v":"Estoque Baixo"},"Estoque Baixo",{"$f":"Nossa_MULT(C87,D87)","v":684}]
["Tênis Infantil Nika Rosa",22,85.5,0,0,{"$f":"Nossa_SE(D88, \"Estoque Baixo\", \"Estoque Normal\")","v":"Estoque Baixo"},"Estoque Baixo",{"$f":"Nossa_MULT(C88,D88)","v":0}]
["Tênis Infantil Nika Azul",22,85.5,5,427.5,{"$f":"Nossa_SE(D89, \"Estoque Baixo\", \"Estoque Normal\")","v":"Estoque Baixo"},"Estoque Baixo",{"$f":"Nossa_MULT(C89,D89)","v":427.5}]
["Tênis Infantil Atitas Vermelho",22,79.8,5,399,{"$f":"Nossa_SE(D90, \"Estoque Baixo\", \"Estoque Normal\")","v":"Estoque Baixo"},"Estoque Baixo",{"$f":"Nossa_MULT(C90,D90)","v":399}]
["Tênis Infantil Atitas Rosa",22,79.8,0,0,{"$f":"Nossa_SE(D91, \"Estoque Baixo\", \"Estoque Normal\")","v":"Estoque Baixo"},"Estoque Baixo",{"$f":"Nossa_MULT(C91,D91)","v":0}]
["Tênis Infantil Atitas Azul",22,79.8,5,399,{"$f":"Nossa_SE(D92, \"Estoque Baixo\", \"Estoque Normal\")","v":"Estoque Baixo"},"Estoque Baixo",{"$f":"Nossa_MULT(C92,D92)","v":399}]
["Tênis Infantil Nika Vermelho",21,85.5,5,427.5,{"$f":"Nossa_SE(D93, \"Estoque Baixo\", \"Estoque Normal\")","v":"Estoque Baixo"},"Estoque Baixo",{"$f":"Nossa_MULT(C93,D93)","v":427.5}]
["Tênis Infantil Nika Rosa",21,85.5,19,1624.5,{"$f":"Nossa_SE(D94, \"Estoque Baixo\", \"Estoque Normal\")","v":"Estoque Baixo"},"Estoque Normal",{"$f":"Nossa_MULT(C94,D94)","v":1624.5}]
["Tênis Infantil Nika Azul",21,85.5,19,1624.5,{"$f":"Nossa_SE(D95, \"Estoque Baixo\", \"Estoque Normal\")","v":"Estoque Baixo"},"Estoque Normal",{"$f":"Nossa_MULT(C95,D95)","v":1624.5}]
["Tênis Infantil Atitas Vermelho",21,79.8,0,0,{"$f":"Nossa_SE(D96, \"Estoque Baixo\", \"Estoque Normal\")","v":"Estoque Baixo"},"Estoque Baixo",{"$f":"Nossa_MULT(C96,D96)","v":0}]
["Tênis Infantil Atitas Rosa",21,79.8,0,0,{"$f":"Nossa_SE(D97, \"Estoque Baixo\", \"Estoque Normal\")","v":"Estoque Baixo"},"Estoque Baixo",{"$f":"Nossa_MULT(C97,D97)","v":0}]
["Tênis Infantil Atitas Azul",21,79.8,12,957.59999999999991,{"$f":"Nossa_SE(D98, \"Estoque Baixo\", \"Estoque Normal\")","v":"Estoque Baixo"},"Estoque Normal",{"$f":"Nossa_MULT(C98,D98)","v":957.59999999999991}]
["Tênis Infantil Nika Vermelho",20,85.5,16,{"$f":"C99*D99","v":1368},{"$f":"Nossa_SE(D99, \"Estoque Baixo\", \"Estoque Normal\")","v":"Estoque Baixo"},{"$f":"IF(D99<10, \"Estoque Baixo\", \"Estoque Normal\")","v":"Estoque Normal"},{"$f":"Nossa_MULT(C99,D99)","v":1368}]
["Tênis Infantil Nika Rosa",20,85.5,16,1368,{"$f":"Nossa_SE(D100, \"Estoque Baixo\", \"Estoque Normal\")","v":"Estoque Baixo"},"Estoque Normal",{"$f":"Nossa_MULT(C100,D100)","v":1368}]
["Tênis Infantil Nika Azul",20,85.5,18,1539,{"$f":"Nossa_SE(D101, \"Estoque Baixo\", \"Estoque Normal\")","v":"Estoque Baixo"},"Estoque Normal",{"$f":"Nossa_MULT(C101,D101)","v":1539}]
["Tênis Infantil Atitas Vermelho",20,79.8,1,79.8,{"$f":"Nossa_SE(D102, \"Estoque Baixo\", \"Estoque Normal\")","v":"Estoque Baixo"},"Estoque Baixo",{"$f":"Nossa_MULT(C102,D102)","v":79.8}]
["Tênis Infantil Atitas Rosa",20,79.8,1,79.8,{"$f":"Nossa_SE(D103, \"Estoque Baixo\", \"Estoque Normal\")","v":"Estoque Baixo"},"Estoque Baixo",{"$f":"Nossa_MULT(C103,D103)","v":79.8}]
["Tênis Infantil Atitas Azul",20,79.8,21,1675.8,{"$f":"Nossa_SE(D104, \"Estoque Baixo\", \"Estoque Normal\")","v":"Estoque Baixo"},"Estoque Normal",{"$f":"Nossa_MULT(C104,D104)","v":1675.8}]
["Tênis Infantil Nika Vermelho",19,85.5,8,684,{"$f":"Nossa_SE(D105, \"Estoque Baixo\", \"Estoque Normal\")","v":"Estoque Baixo"},"Estoque Baixo",{"$f":"Nossa_MULT(C105,D105)","v":684}]
["Tênis Infantil Nika Rosa",19,85.5,25,2137.5,{"$f":"Nossa_SE(D106, \"Estoque Baixo\", \"Estoque Normal\")","v":"Estoque Baixo"},"Estoque Normal",{"$f":"Nossa_MULT(C106,D106)","v":2137.5}]
["Tênis Infantil Nika Azul",19,85.5,16,1368,{"$f":"Nossa_SE(D107, \"Estoque Baixo\", \"Estoque Normal\")","v":"Estoque Baixo"},"Estoque Normal",{"$f":"Nossa_MULT(C107,D107)","v":1368}]
["Tênis Infantil Atitas Vermelho",19,79.8,3,239.39999999999998,{"$f":"Nossa_SE(D108, \"Estoque Baixo\", \"Estoque Normal\")","v":"Estoque Baixo"},"Estoque Baixo",{"$f":"Nossa_MULT(C108,D108)","v":239.39999999999998}]
["Tênis Infantil Atitas Rosa",19,79.8,2,159.6,{"$f":"Nossa_SE(D109, \"Estoque Baixo\", \"Estoque Normal\")","v":"Estoque Baixo"},"Estoque Baixo",{"$f":"Nossa_MULT(C109,D109)","v":159.6}]
["Tênis Infantil Atitas Azul",19,79.8,3,239.39999999999998,{"$f":"Nossa_SE(D110, \"Estoque Baixo\", \"Estoque Normal\")","v":"Estoque Baixo"},"Estoque Baixo",{"$f":"Nossa_MULT(C110,D110)","v":239.39999999999998}]
["Tênis Infantil Nika Vermelho",18,85.5,3,256.5,{"$f":"Nossa_SE(D111, \"Estoque Baixo\", \"Estoque Normal\")","v":"Estoque Baixo"},"Estoque Baixo",{"$f":"Nossa_MULT(C111,D111)","v":256.5}]
["Tênis Infantil Nika Rosa",18,85.5,15,1282.5,{"$f":"Nossa_SE(D112, \"Estoque Baixo\", \"Estoque Normal\")","v":"Estoque Baixo"},"Estoque Normal",{"$f":"Nossa_MULT(C112,D112)","v":1282.5}]
["Tênis Infantil Nika Azul",18,85.5,5,427.5,{"$f":"Nossa_SE(D113, \"Estoque Baixo\", \"Estoque Normal\")","v":"Estoque Baixo"},"Estoque Baixo",{"$f":"Nossa_MULT(C113,D113)","v":427.5}]
["Tênis Infantil Atitas Vermelho",18,79.8,2,159.6,{"$f":"Nossa_SE(D114, \"Estoque Baixo\", \"Estoque Normal\")","v":"Estoque Baixo"},"Estoque Baixo",{"$f":"Nossa_MULT(C114,D114)","v":159.6}]
["Tênis Infantil Atitas Rosa",18,79.8,15,1197,{"$f":"Nossa_SE(D115, \"Estoque Baixo\", \"Estoque Normal\")","v":"Estoque Baixo"},"Estoque Normal",{"$f":"Nossa_MULT(C115,D115)","v":1197}]
["Tênis Infantil Atitas Azul",18,79.8,0,0,{"$f":"Nossa_SE(D116, \"Estoque Baixo\", \"Estoque Normal\")","v":"Estoque Baixo"},"Estoque Baixo",{"$f":"Nossa_MULT(C116,D116)","v":0}]
["Tênis Infantil Nika Vermelho",17,85.5,0,0,{"$f":"Nossa_SE(D117, \"Estoque Baixo\", \"Estoque Normal\")","v":"Estoque Baixo"},"Estoque Baixo",{"$f":"Nossa_MULT(C117,D117)","v":0}]
["Tênis Infantil Nika Rosa",17,85.5,6,513,{"$f":"Nossa_SE(D118, \"Estoque Baixo\", \"Estoque Normal\")","v":"Estoque Baixo"},"Estoque Baixo",{"$f":"Nossa_MULT(C118,D118)","v":513}]
["Tênis Infantil Nika Azul",17,85.5,2,171,{"$f":"Nossa_SE(D119, \"Estoque Baixo\", \"Estoque Normal\")","v":"Estoque Baixo"},"Estoque Baixo",{"$f":"Nossa_MULT(C119,D119)","v":171}]
["Tênis Infantil Atitas Vermelho",17,79.8,25,1995,{"$f":"Nossa_SE(D120, \"Estoque Baixo\", \"Estoque Normal\")","v":"Estoque Baixo"},"Estoque Normal",{"$f":"Nossa_MULT(C120,D120)","v":1995}]
["Tênis Infantil Atitas Rosa",17,79.8,17,1356.6,{"$f":"Nossa_SE(D121, \"Estoque Baixo\", \"Estoque Normal\")","v":"Estoque Baixo"},"Estoque Normal",{"$f":"Nossa_MULT(C121,D121)","v":1356.6}]
["Tênis Infantil Atitas Azul",17,79.8,15,1197,{"$f":"Nossa_SE(D122, \"Estoque Baixo\", \"Estoque Normal\")","v":"Estoque Baixo"},"Estoque Normal",{"$f":"Nossa_MULT(C122,D122)","v":1197}]
[null,"Total",{"$f":"SUM(C3:C122)","v":10136.399999999998},{"$f":"SUM(D3:D122)","v":1273},{"$f":"SUM(E3:E122)","v":107424.20000000001}]

{"sheet":"Dados","index":1,"n_rows":7,"n_cols":2,"rows_kept":7,"cut":false,"hidden":false,"merged":[]}
["Tipo de Tênis","Maior Valor"]
["Tênis Infantil Nika Vermelho",{"$f":"_xlfn.MAXIFS('Produtos Infantis'!$C$3:$C$122,'Produtos Infantis'!$A$3:$A$122,Dados!A2)","v":95}]
["Tênis Infantil Nika Rosa",{"$f":"_xlfn.MAXIFS('Produtos Infantis'!$C$3:$C$122,'Produtos Infantis'!$A$3:$A$122,Dados!A3)","v":89.9}]
["Tênis Infantil Nika Azul",{"$f":"_xlfn.MAXIFS('Produtos Infantis'!$C$3:$C$122,'Produtos Infantis'!$A$3:$A$122,Dados!A4)","v":89.9}]
["Tênis Infantil Atitas Vermelho",{"$f":"_xlfn.MAXIFS('Produtos Infantis'!$C$3:$C$122,'Produtos Infantis'!$A$3:$A$122,Dados!A5)","v":83.3}]
["Tênis Infantil Atitas Rosa",{"$f":"_xlfn.MAXIFS('Produtos Infantis'!$C$3:$C$122,'Produtos Infantis'!$A$3:$A$122,Dados!A6)","v":83.3}]
["Tênis Infantil Atitas Azul",{"$f":"_xlfn.MAXIFS('Produtos Infantis'!$C$3:$C$122,'Produtos Infantis'!$A$3:$A$122,Dados!A7)","v":83.3}]